[Event "*** Titled Tuesday 3|2 Blitz"]
[Site "Chess.com"]
[Date "2016.06.07"]
[Round "2"]
[White "pKiLz5Rn9b"]
[Black "aripov96"]
[Result "1-0"]
[WhiteElo "2452"]
[BlackElo "2255"]
[TimeControl "180+2"]
[EndTime "17:19:36 PDT"]
[Termination "pKiLz5Rn9b won by checkmate"]

1. e4 {[%clk 0:03:01.9]} 1... c5 {[%clk 0:03:01.1]} 2. c3 {[%clk 0:03:02.9]}
2... g6 {[%clk 0:03:01]} 3. d4 {[%clk 0:03:04.1]} 3... cxd4 {[%clk 0:03:02.4]}
4. cxd4 {[%clk 0:03:06]} 4... d5 {[%clk 0:03:03.7]} 5. e5 {[%clk 0:03:07.5]}
5... Bg7 {[%clk 0:03:04.3]} 6. Nc3 {[%clk 0:03:09]} 6... Nc6 {[%clk 0:03:04.1]}
7. h3 {[%clk 0:03:09.7]} 7... Nh6 {[%clk 0:03:04.7]} 8. g4 {[%clk 0:03:11.1]}
8... O-O {[%clk 0:03:03.8]} 9. Bg2 {[%clk 0:03:08.3]} 9... e6 {[%clk 0:02:50.9]}
10. Be3 {[%clk 0:03:08.6]} 10... Kh8 {[%clk 0:02:41.7]} 11. Qd2 {[%clk
0:03:09.6]} 11... Ng8 {[%clk 0:02:41.1]} 12. h4 {[%clk 0:03:11.2]} 12... f6
{[%clk 0:02:35.4]} 13. exf6 {[%clk 0:03:07.1]} 13... Qxf6 {[%clk 0:02:32.2]} 14.
Nf3 {[%clk 0:03:05.9]} 14... e5 {[%clk 0:02:18.8]} 15. Nxd5 {[%clk 0:03:00.5]}
15... Qf7 {[%clk 0:02:19.5]} 16. Ng5 {[%clk 0:02:48.2]} 16... Qd7 {[%clk
0:02:10.9]} 17. h5 {[%clk 0:02:39.6]} 17... exd4 {[%clk 0:01:54.3]} 18. Bf4
{[%clk 0:02:29]} 18... gxh5 {[%clk 0:01:21.9]} 19. Rxh5 {[%clk 0:02:22.7]} 19...
h6 {[%clk 0:01:22.5]} 20. O-O-O {[%clk 0:02:15.7]} 20... Qxg4 {[%clk 0:01:18.7]}
21. Bf3 {[%clk 0:02:06.8]} 21... Qd7 {[%clk 0:01:01.1]} 22. Rdh1 {[%clk
0:01:54.3]} 22... Rxf4 {[%clk 0:00:42.4]} 23. Nxf4 {[%clk 0:01:43.2]} 23... Ne5
{[%clk 0:00:43.4]} 24. Be4 {[%clk 0:01:36.4]} 24... Qc7+ {[%clk 0:00:32.6]} 25.
Kb1 {[%clk 0:01:37.5]} 25... Bg4 {[%clk 0:00:33.4]} 26. R5h4 {[%clk 0:01:34.8]}
26... Bd7 {[%clk 0:00:21.3]} 27. Nge6 {[%clk 0:01:32.7]} 27... Bxe6 {[%clk
0:00:18.1]} 28. Nxe6 {[%clk 0:01:34.6]} 28... Qd6 {[%clk 0:00:16.2]} 29. Nxg7
{[%clk 0:01:35.4]} 29... Kxg7 {[%clk 0:00:17.7]} 30. Rg1+ {[%clk 0:01:34.8]}
30... Kh8 {[%clk 0:00:18.6]} 31. Qf4 {[%clk 0:01:35.5]} 31... Rf8 {[%clk
0:00:17.3]} 32. Qg3 {[%clk 0:01:36.8]} 32... d3 {[%clk 0:00:16.2]} 33. Qg7#
{[%clk 0:01:36.8]} 1-0

[Event "*** Titled Tuesday 3|2 Blitz"]
[Site "Chess.com"]
[Date "2016.06.07"]
[Round "2"]
[White "sandropozo"]
[Black "Newlight1"]
[Result "1-0"]
[WhiteElo "2410"]
[BlackElo "2180"]
[TimeControl "180+2"]
[EndTime "17:19:54 PDT"]
[Termination "sandropozo won by resignation"]

1. d4 {[%clk 0:03:01.2]} 1... Nf6 {[%clk 0:02:59.7]} 2. Nf3 {[%clk 0:03:02.2]}
2... c5 {[%clk 0:03:01.1]} 3. d5 {[%clk 0:03:02.2]} 3... e6 {[%clk 0:03:02.1]}
4. c4 {[%clk 0:03:03.9]} 4... exd5 {[%clk 0:03:03.2]} 5. cxd5 {[%clk 0:03:05.5]}
5... d6 {[%clk 0:03:04.3]} 6. Nc3 {[%clk 0:03:07.1]} 6... g6 {[%clk 0:03:04]} 7.
Bf4 {[%clk 0:03:08.4]} 7... Bg7 {[%clk 0:03:03.8]} 8. e3 {[%clk 0:03:06.9]} 8...
O-O {[%clk 0:03:03.7]} 9. h3 {[%clk 0:03:06.1]} 9... a6 {[%clk 0:03:00]} 10. a4
{[%clk 0:03:07]} 10... Qa5 {[%clk 0:02:59.3]} 11. Nd2 {[%clk 0:02:50.6]} 11...
Rd8 {[%clk 0:02:47.9]} 12. Be2 {[%clk 0:02:46.5]} 12... Qc7 {[%clk 0:02:39.6]}
13. O-O {[%clk 0:02:44.8]} 13... Nbd7 {[%clk 0:02:40.5]} 14. Nc4 {[%clk
0:02:44.8]} 14... Nb6 {[%clk 0:02:37]} 15. Na3 {[%clk 0:02:36.2]} 15... Bf5
{[%clk 0:02:30.2]} 16. a5 {[%clk 0:02:36]} 16... Nbd7 {[%clk 0:02:29.8]} 17. Nc4
{[%clk 0:02:36.9]} 17... Ne5 {[%clk 0:02:30.6]} 18. Nb6 {[%clk 0:02:13.9]} 18...
Rab8 {[%clk 0:02:31]} 19. f3 {[%clk 0:02:15.1]} 19... Nfd7 {[%clk 0:02:29.7]}
20. e4 {[%clk 0:02:15.3]} 20... g5 {[%clk 0:02:11.7]} 21. Bxe5 {[%clk
0:02:07.9]} 21... Bxe5 {[%clk 0:02:09.2]} 22. exf5 {[%clk 0:02:06.4]} 22... Nxb6
{[%clk 0:02:09.7]} 23. axb6 {[%clk 0:02:07.6]} 23... Qxb6 {[%clk 0:02:11.6]} 24.
Ne4 {[%clk 0:02:08]} 24... h6 {[%clk 0:02:03.6]} 25. Kh1 {[%clk 0:02:04.2]}
25... Qxb2 {[%clk 0:02:04.1]} 26. Rb1 {[%clk 0:02:01.1]} 26... Qa3 {[%clk
0:02:04.8]} 27. h4 {[%clk 0:01:45.2]} 27... gxh4 {[%clk 0:01:53.4]} 28. f4
{[%clk 0:01:43.6]} 28... Bd4 {[%clk 0:01:53.3]} 29. Rb3 {[%clk 0:01:39.2]} 29...
Qa2 {[%clk 0:01:36.6]} 30. Bc4 {[%clk 0:01:29]} 30... Qa5 {[%clk 0:01:29.7]} 31.
Qh5 {[%clk 0:01:27.8]} 31... b5 {[%clk 0:01:07.4]} 32. f6 {[%clk 0:01:27.5]}
32... Bxf6 {[%clk 0:00:52.1]} 33. Nxf6+ {[%clk 0:01:26.3]} 33... Kg7 {[%clk
0:00:53.5]} 34. Ng4 {[%clk 0:01:19.9]} 34... Rh8 {[%clk 0:00:54]} 35. Qxh4
{[%clk 0:01:17.5]} 35... bxc4 {[%clk 0:00:35.3]} 36. Qf6+ {[%clk 0:01:16.8]}
36... Kg8 {[%clk 0:00:34.1]} 37. Rxb8+ {[%clk 0:01:17.3]} 1-0

[Event "*** Titled Tuesday 3|2 Blitz"]
[Site "Chess.com"]
[Date "2016.06.07"]
[Round "2"]
[White "Fandorine"]
[Black "MaestroASK"]
[Result "1-0"]
[WhiteElo "2601"]
[BlackElo "2446"]
[TimeControl "180+2"]
[EndTime "17:19:56 PDT"]
[Termination "Fandorine won by resignation"]

1. e4 {[%clk 0:02:36.8]} 1... d6 {[%clk 0:03:01.9]} 2. d4 {[%clk 0:02:37.9]}
2... g6 {[%clk 0:03:03.8]} 3. Nc3 {[%clk 0:02:38.3]} 3... c6 {[%clk 0:03:05.7]}
4. h3 {[%clk 0:02:39.8]} 4... e5 {[%clk 0:03:06.3]} 5. g4 {[%clk 0:02:40.3]}
5... Bh6 {[%clk 0:03:00.4]} 6. Bxh6 {[%clk 0:02:39.5]} 6... Nxh6 {[%clk
0:03:00.2]} 7. Qd2 {[%clk 0:02:41.1]} 7... Ng8 {[%clk 0:03:00.6]} 8. O-O-O
{[%clk 0:02:42.2]} 8... Qe7 {[%clk 0:03:00.3]} 9. f4 {[%clk 0:02:43.3]} 9... Nd7
{[%clk 0:02:57.5]} 10. Nf3 {[%clk 0:02:44.2]} 10... Ngf6 {[%clk 0:02:49.5]} 11.
f5 {[%clk 0:02:28.3]} 11... h5 {[%clk 0:02:38.2]} 12. g5 {[%clk 0:02:24.5]}
12... Nh7 {[%clk 0:02:38.5]} 13. f6 {[%clk 0:02:22.9]} 13... Qd8 {[%clk
0:02:34.5]} 14. dxe5 {[%clk 0:02:21.9]} 14... dxe5 {[%clk 0:02:31.2]} 15. Nxe5
{[%clk 0:02:23]} 15... Qc7 {[%clk 0:02:30.6]} 16. Nc4 {[%clk 0:02:07.1]} 16...
O-O {[%clk 0:02:30.2]} 17. h4 {[%clk 0:02:03.1]} 17... Ne5 {[%clk 0:02:29.3]}
18. Qd6 {[%clk 0:02:01.3]} 18... Qxd6 {[%clk 0:02:28.9]} 19. Rxd6 {[%clk
0:01:55.1]} 19... Nxc4 {[%clk 0:02:20.3]} 20. Bxc4 {[%clk 0:01:55.8]} 20... Re8
{[%clk 0:02:21.1]} 21. a4 {[%clk 0:01:52]} 21... a5 {[%clk 0:02:20.6]} 22. Rhd1
{[%clk 0:01:50]} 22... Bg4 {[%clk 0:02:20.3]} 23. R1d4 {[%clk 0:01:49.3]} 23...
Nf8 {[%clk 0:02:20.9]} 24. b3 {[%clk 0:01:30.2]} 24... Re5 {[%clk 0:02:20.2]}
25. Rd8 {[%clk 0:01:29.1]} 25... Re8 {[%clk 0:02:20.5]} 26. Rxa8 {[%clk
0:01:29.6]} 26... Rxa8 {[%clk 0:02:20.9]} 27. e5 {[%clk 0:01:16.9]} 27... Re8
{[%clk 0:02:19.5]} 28. Ne4 {[%clk 0:01:18.2]} 28... Rxe5 {[%clk 0:02:10.6]} 29.
Nd6 {[%clk 0:01:19.3]} 29... Be6 {[%clk 0:02:03.1]} 30. Nxb7 {[%clk 0:01:15.3]}
30... Bxc4 {[%clk 0:01:49.5]} 31. Rxc4 {[%clk 0:01:17.2]} 31... Ne6 {[%clk
0:01:49.2]} 32. Rxc6 {[%clk 0:01:13.8]} 32... Nd4 {[%clk 0:01:49.6]} 33. Rc8+
{[%clk 0:01:13.6]} 33... Kh7 {[%clk 0:01:50.7]} 34. Rc7 {[%clk 0:01:07.6]} 34...
Kg8 {[%clk 0:01:50.7]} 35. Nd6 {[%clk 0:01:07.7]} 35... Re1+ {[%clk 0:01:14.8]}
36. Kb2 {[%clk 0:01:03]} 36... Nf5 {[%clk 0:01:08.1]} 37. Nxf7 {[%clk
0:01:02.7]} 37... Nxh4 {[%clk 0:01:05.7]} 38. Nh6+ {[%clk 0:01:03.7]} 38... Kh8
{[%clk 0:01:06.8]} 39. Rc8+ {[%clk 0:01:04.1]} 39... Kh7 {[%clk 0:01:07.3]} 40.
f7 {[%clk 0:01:05.5]} 1-0

[Event "*** Titled Tuesday 3|2 Blitz"]
[Site "Chess.com"]
[Date "2016.06.07"]
[Round "2"]
[White "gmjoey1"]
[Black "howitzer14"]
[Result "1-0"]
[WhiteElo "2522"]
[BlackElo "2677"]
[TimeControl "180+2"]
[EndTime "17:20:03 PDT"]
[Termination "gmjoey1 won by resignation"]

1. e4 {[%clk 0:03:01.9]} 1... e5 {[%clk 0:03:01.1]} 2. Nf3 {[%clk 0:03:02.5]}
2... Nc6 {[%clk 0:03:02.7]} 3. Nc3 {[%clk 0:03:03]} 3... Nf6 {[%clk 0:03:03.1]}
4. Bb5 {[%clk 0:03:03.6]} 4... Bc5 {[%clk 0:03:03.9]} 5. Nxe5 {[%clk 0:03:02.7]}
5... Nxe5 {[%clk 0:03:05.8]} 6. d4 {[%clk 0:03:02.7]} 6... Bd6 {[%clk
0:03:07.5]} 7. f4 {[%clk 0:03:03.1]} 7... Nc6 {[%clk 0:03:06]} 8. e5 {[%clk
0:03:03.5]} 8... Bb4 {[%clk 0:03:07.4]} 9. O-O {[%clk 0:03:03.8]} 9... Bxc3
{[%clk 0:03:07.4]} 10. bxc3 {[%clk 0:03:04.7]} 10... Ne4 {[%clk 0:03:09.1]} 11.
Qf3 {[%clk 0:02:58.1]} 11... d5 {[%clk 0:03:04]} 12. f5 {[%clk 0:02:54.4]} 12...
O-O {[%clk 0:02:37.9]} 13. f6 {[%clk 0:02:47]} 13... gxf6 {[%clk 0:02:02.8]} 14.
exf6 {[%clk 0:02:24.6]} 14... Qd7 {[%clk 0:01:26.6]} 15. h3 {[%clk 0:02:23.6]}
15... Kh8 {[%clk 0:01:19.3]} 16. Bh6 {[%clk 0:02:23.9]} 16... Rg8 {[%clk
0:01:20.9]} 17. Bg7+ {[%clk 0:02:24.6]} 17... Rxg7 {[%clk 0:01:21.8]} 18. fxg7+
{[%clk 0:02:26]} 18... Kxg7 {[%clk 0:01:23.7]} 19. Bd3 {[%clk 0:02:17.7]} 19...
f5 {[%clk 0:01:23.5]} 20. Bxe4 {[%clk 0:02:18.1]} 20... dxe4 {[%clk 0:01:23.6]}
21. Qg3+ {[%clk 0:02:19.2]} 21... Kh8 {[%clk 0:01:16]} 22. Rae1 {[%clk
0:02:20.6]} 22... Qg7 {[%clk 0:01:13.8]} 23. Qh4 {[%clk 0:02:14.1]} 23... Bd7
{[%clk 0:01:06.4]} 24. g4 {[%clk 0:02:08.8]} 24... fxg4 {[%clk 0:00:59.2]} 25.
Kh2 {[%clk 0:01:56.5]} 25... Re8 {[%clk 0:00:52]} 26. Re3 {[%clk 0:01:55]} 26...
Na5 {[%clk 0:00:46.5]} 27. Rf4 {[%clk 0:01:45.2]} 27... Nc4 {[%clk 0:00:31.8]}
28. Rexe4 {[%clk 0:01:45.9]} 28... Rxe4 {[%clk 0:00:31.9]} 29. Rxe4 {[%clk
0:01:46.8]} 29... Nd2 {[%clk 0:00:33.6]} 30. Qd8+ {[%clk 0:01:40.1]} 30... Qg8
{[%clk 0:00:33.7]} 31. Qf6+ {[%clk 0:01:40.3]} 31... Qg7 {[%clk 0:00:34.9]} 32.
Qxg7+ {[%clk 0:01:40.7]} 32... Kxg7 {[%clk 0:00:36.8]} 33. Re7+ {[%clk
0:01:41.5]} 33... Kf6 {[%clk 0:00:19.9]} 34. Rxd7 {[%clk 0:01:42.7]} 34... Nf1+
{[%clk 0:00:21.8]} 35. Kg1 {[%clk 0:01:42.1]} 35... Ne3 {[%clk 0:00:22.3]} 36.
hxg4 {[%clk 0:01:43.3]} 36... c6 {[%clk 0:00:21.6]} 37. Rxh7 {[%clk 0:01:43.5]}
37... b5 {[%clk 0:00:22]} 38. Rxa7 {[%clk 0:01:43.5]} 38... Nd5 {[%clk
0:00:19.2]} 39. Ra6 {[%clk 0:01:43.7]} 39... Kg5 {[%clk 0:00:19.6]} 40. Rxc6
{[%clk 0:01:43.9]} 40... Kxg4 {[%clk 0:00:21.5]} 41. Rc5 {[%clk 0:01:44.8]} 1-0

[Event "*** Titled Tuesday 3|2 Blitz"]
[Site "Chess.com"]
[Date "2016.06.07"]
[Round "2"]
[White "Cruel_Yaro"]
[Black "dretch"]
[Result "0-1"]
[WhiteElo "2545"]
[BlackElo "2618"]
[TimeControl "180+2"]
[EndTime "17:20:28 PDT"]
[Termination "dretch won by resignation"]

1. d4 {[%clk 0:03:00.5]} 1... d5 {[%clk 0:03:00.9]} 2. c4 {[%clk 0:03:01.7]}
2... c6 {[%clk 0:03:02.3]} 3. Nf3 {[%clk 0:03:03.1]} 3... Nf6 {[%clk 0:03:03.8]}
4. Nc3 {[%clk 0:03:05]} 4... dxc4 {[%clk 0:03:05.4]} 5. a4 {[%clk 0:03:05.9]}
5... e6 {[%clk 0:03:07]} 6. e4 {[%clk 0:02:59.8]} 6... Bb4 {[%clk 0:03:08.2]} 7.
e5 {[%clk 0:03:01.2]} 7... Nd5 {[%clk 0:03:09.4]} 8. Bd2 {[%clk 0:03:02.4]} 8...
b5 {[%clk 0:03:10.7]} 9. axb5 {[%clk 0:03:02.5]} 9... Bxc3 {[%clk 0:03:11.9]}
10. bxc3 {[%clk 0:03:04.4]} 10... cxb5 {[%clk 0:03:13.2]} 11. Ng5 {[%clk
0:03:05.7]} 11... h6 {[%clk 0:03:14.6]} 12. Qh5 {[%clk 0:02:38.3]} 12... O-O
{[%clk 0:03:15.4]} 13. Ne4 {[%clk 0:02:38.3]} 13... f6 {[%clk 0:03:16.8]} 14.
Nd6 {[%clk 0:02:34.2]} 14... fxe5 {[%clk 0:03:17.8]} 15. Nxb5 {[%clk 0:02:32.6]}
15... Qf6 {[%clk 0:03:07.5]} 16. f3 {[%clk 0:02:28.4]} 16... Nc6 {[%clk
0:02:49.3]} 17. Bxc4 {[%clk 0:02:26.8]} 17... exd4 {[%clk 0:02:44.7]} 18. Bxd5
{[%clk 0:02:18.2]} 18... exd5 {[%clk 0:02:30.8]} 19. Qxd5+ {[%clk 0:02:16.2]}
19... Kh8 {[%clk 0:02:30.9]} 20. O-O {[%clk 0:02:15.9]} 20... Rd8 {[%clk
0:02:29.2]} 21. Qc5 {[%clk 0:02:14.4]} 21... d3 {[%clk 0:02:10]} 22. Rfe1 {[%clk
0:02:14.3]} 22... Qg6 {[%clk 0:02:01.7]} 23. Nc7 {[%clk 0:01:26.6]} 23... Bh3
{[%clk 0:01:58.8]} 24. Qf2 {[%clk 0:01:15.9]} 24... Rac8 {[%clk 0:01:59.1]} 25.
Nb5 {[%clk 0:01:09.4]} 25... a5 {[%clk 0:01:41.1]} 26. Nd4 {[%clk 0:00:54.5]}
26... Nxd4 {[%clk 0:01:39.4]} 27. cxd4 {[%clk 0:00:55.4]} 27... Rc2 {[%clk
0:01:40.4]} 28. Red1 {[%clk 0:00:53.4]} 28... Re8 {[%clk 0:01:20]} 29. Qg3
{[%clk 0:00:26.8]} 29... Bf5 {[%clk 0:01:10.1]} 30. Qxg6 {[%clk 0:00:22]} 30...
Bxg6 {[%clk 0:01:10.7]} 31. Rxa5 {[%clk 0:00:05.7]} 31... Re2 {[%clk 0:01:10]}
32. Bf4 {[%clk 0:00:06.7]} 32... Rxg2+ {[%clk 0:01:09.6]} 33. Kh1 {[%clk
0:00:06.9]} 33... Rge2 {[%clk 0:01:06.1]} 34. d5 {[%clk 0:00:07.2]} 34... Bh5
{[%clk 0:01:01.9]} 35. Rf1 {[%clk 0:00:08.2]} 35... Bxf3+ {[%clk 0:01:01.3]} 0-1

[Event "*** Titled Tuesday 3|2 Blitz"]
[Site "Chess.com"]
[Date "2016.06.07"]
[Round "2"]
[White "champ1000"]
[Black "UltimateCrusher2"]
[Result "1-0"]
[WhiteElo "2043"]
[BlackElo "2098"]
[TimeControl "180+2"]
[EndTime "17:20:31 PDT"]
[Termination "champ1000 won by resignation"]

1. e4 {[%clk 0:03:01.9]} 1... b6 {[%clk 0:02:54.4]} 2. d4 {[%clk 0:03:02.1]}
2... Bb7 {[%clk 0:02:55.9]} 3. Bd3 {[%clk 0:03:03.4]} 3... e6 {[%clk 0:02:56.3]}
4. Nc3 {[%clk 0:03:04.3]} 4... Nf6 {[%clk 0:02:57.2]} 5. Qe2 {[%clk 0:03:05.7]}
5... d5 {[%clk 0:02:23.8]} 6. e5 {[%clk 0:03:00.6]} 6... Nfd7 {[%clk 0:02:23.7]}
7. b3 {[%clk 0:02:38.6]} 7... c5 {[%clk 0:02:16.7]} 8. dxc5 {[%clk 0:02:26.4]}
8... Bxc5 {[%clk 0:02:06.8]} 9. Nf3 {[%clk 0:02:24.6]} 9... Nc6 {[%clk
0:01:44.1]} 10. O-O {[%clk 0:02:17.2]} 10... Nd4 {[%clk 0:01:43.1]} 11. Nxd4
{[%clk 0:02:02.3]} 11... Bxd4 {[%clk 0:01:45]} 12. Nb5 {[%clk 0:01:44.3]} 12...
Bxe5 {[%clk 0:01:28.5]} 13. Ba3 {[%clk 0:01:39.3]} 13... Ba6 {[%clk 0:01:04.3]}
14. Rae1 {[%clk 0:01:00.8]} 14... Qb8 {[%clk 0:00:43.1]} 15. f4 {[%clk 0:00:37]}
15... Bxb5 {[%clk 0:00:34.6]} 16. Bxb5 {[%clk 0:00:24.1]} 16... Bd4+ {[%clk
0:00:35.8]} 17. Kh1 {[%clk 0:00:24.2]} 17... a6 {[%clk 0:00:37.2]} 18. Bd3
{[%clk 0:00:21.8]} 18... Bc5 {[%clk 0:00:37.6]} 19. Bb2 {[%clk 0:00:22.4]} 19...
O-O {[%clk 0:00:37.8]} 20. Qg4 {[%clk 0:00:23.4]} 20... g6 {[%clk 0:00:34.3]}
21. f5 {[%clk 0:00:24.8]} 21... e5 {[%clk 0:00:18.7]} 22. fxg6 {[%clk
0:00:24.5]} 22... hxg6 {[%clk 0:00:18.9]} 23. Qxd7 {[%clk 0:00:25.5]} 23... e4
{[%clk 0:00:19.1]} 24. Be2 {[%clk 0:00:24.5]} 24... Ra7 {[%clk 0:00:17.1]} 25.
Qh3 {[%clk 0:00:24.9]} 25... f6 {[%clk 0:00:17.3]} 26. Qe6+ {[%clk 0:00:24.8]}
26... Raf7 {[%clk 0:00:17.9]} 27. Rxf6 {[%clk 0:00:25]} 27... Qd8 {[%clk
0:00:15.7]} 28. Rxg6+ {[%clk 0:00:26.2]} 28... Kh7 {[%clk 0:00:16.4]} 29. Rh6+
{[%clk 0:00:27.3]} 1-0

[Event "*** Titled Tuesday 3|2 Blitz"]
[Site "Chess.com"]
[Date "2016.06.07"]
[Round "2"]
[White "silverback96"]
[Black "BCNUM8"]
[Result "0-1"]
[WhiteElo "2034"]
[BlackElo "2130"]
[TimeControl "180+2"]
[EndTime "17:20:31 PDT"]
[Termination "BCNUM8 won by resignation"]

1. Nf3 {[%clk 0:03:01.9]} 1... Nc6 {[%clk 0:03:00.5]} 2. g3 {[%clk 0:03:03.8]}
2... e5 {[%clk 0:03:01.8]} 3. e4 {[%clk 0:03:04.2]} 3... Nf6 {[%clk 0:03:00.3]}
4. Nc3 {[%clk 0:03:04.4]} 4... Bb4 {[%clk 0:03:01.1]} 5. Bg2 {[%clk 0:03:00.3]}
5... Bxc3 {[%clk 0:02:56.9]} 6. bxc3 {[%clk 0:03:01.3]} 6... Nxe4 {[%clk
0:02:58.2]} 7. Qe2 {[%clk 0:03:02.3]} 7... d5 {[%clk 0:02:59.2]} 8. O-O {[%clk
0:02:47.7]} 8... O-O {[%clk 0:02:59.7]} 9. Ba3 {[%clk 0:02:36.5]} 9... Re8
{[%clk 0:03:00.1]} 10. Rab1 {[%clk 0:02:38]} 10... Nd6 {[%clk 0:02:50.6]} 11. h4
{[%clk 0:02:33.1]} 11... Bg4 {[%clk 0:02:51]} 12. Qe3 {[%clk 0:02:23.2]} 12...
Qf6 {[%clk 0:02:38.5]} 13. Bxd6 {[%clk 0:02:21.3]} 13... Qxd6 {[%clk 0:02:21.5]}
14. Rxb7 {[%clk 0:02:13.8]} 14... Na5 {[%clk 0:02:21.2]} 15. Rb5 {[%clk
0:02:09.1]} 15... Nc4 {[%clk 0:02:20.3]} 16. Qg5 {[%clk 0:02:10.2]} 16... Bd7
{[%clk 0:02:14.9]} 17. Rb4 {[%clk 0:01:54.8]} 17... h6 {[%clk 0:02:16.1]} 18.
Qh5 {[%clk 0:01:52.2]} 18... e4 {[%clk 0:02:07.2]} 19. Nd4 {[%clk 0:01:44.6]}
19... c5 {[%clk 0:01:41.3]} 20. Nb5 {[%clk 0:01:41.3]} 20... Bxb5 {[%clk
0:01:34.8]} 21. Rxb5 {[%clk 0:01:42]} 21... Nxd2 {[%clk 0:01:35.8]} 22. Rd1
{[%clk 0:01:42.9]} 22... Qc6 {[%clk 0:01:27.7]} 23. a4 {[%clk 0:01:33.8]} 23...
a6 {[%clk 0:01:26.6]} 24. Rb2 {[%clk 0:01:15.1]} 24... Nc4 {[%clk 0:01:20.3]}
25. Ra2 {[%clk 0:01:16]} 25... Re5 {[%clk 0:01:17.1]} 26. Qg4 {[%clk 0:01:14.7]}
26... Rae8 {[%clk 0:01:14.2]} 27. Raa1 {[%clk 0:01:08.8]} 27... f5 {[%clk
0:01:15.6]} 28. Qh5 {[%clk 0:01:06.9]} 28... e3 {[%clk 0:00:58.3]} 29. Rxd5
{[%clk 0:00:57.8]} 29... Rxd5 {[%clk 0:00:57.6]} 30. Bxd5+ {[%clk 0:00:56]}
30... Qxd5 {[%clk 0:00:57.7]} 31. Qxe8+ {[%clk 0:00:57.6]} 31... Kh7 {[%clk
0:00:59.4]} 32. fxe3 {[%clk 0:00:53.7]} 32... Qf3 {[%clk 0:01:00.2]} 33. Qb8
{[%clk 0:00:46]} 33... Nxe3 {[%clk 0:00:58.5]} 0-1

[Event "*** Titled Tuesday 3|2 Blitz"]
[Site "Chess.com"]
[Date "2016.06.07"]
[Round "2"]
[White "evgenyermolaev"]
[Black "Abrito99"]
[Result "1-0"]
[WhiteElo "2275"]
[BlackElo "2342"]
[TimeControl "180+2"]
[EndTime "17:20:41 PDT"]
[Termination "evgenyermolaev won on time"]

1. e4 {[%clk 0:03:01.9]} 1... e6 {[%clk 0:02:58.8]} 2. Nc3 {[%clk 0:03:02.3]}
2... d5 {[%clk 0:03:00.2]} 3. Nf3 {[%clk 0:03:03.1]} 3... Nf6 {[%clk 0:02:56.6]}
4. e5 {[%clk 0:03:04]} 4... Nfd7 {[%clk 0:02:58]} 5. d4 {[%clk 0:03:04.1]} 5...
c5 {[%clk 0:02:59.3]} 6. dxc5 {[%clk 0:03:05.3]} 6... Nc6 {[%clk 0:03:00.1]} 7.
Bf4 {[%clk 0:03:05.8]} 7... Nxc5 {[%clk 0:03:00.5]} 8. Be2 {[%clk 0:03:05.8]}
8... Be7 {[%clk 0:02:57.9]} 9. O-O {[%clk 0:03:02.4]} 9... a6 {[%clk 0:02:58.9]}
10. Nd4 {[%clk 0:03:01.7]} 10... f5 {[%clk 0:02:55.2]} 11. exf6 {[%clk
0:02:52.7]} 11... Bxf6 {[%clk 0:02:55.4]} 12. Be3 {[%clk 0:02:47.9]} 12... Nxd4
{[%clk 0:02:00.2]} 13. Bxd4 {[%clk 0:02:48.5]} 13... Nd7 {[%clk 0:01:59.5]} 14.
Bg4 {[%clk 0:02:25.1]} 14... Bxd4 {[%clk 0:01:36.8]} 15. Qxd4 {[%clk 0:02:21.8]}
15... Qf6 {[%clk 0:01:36.7]} 16. Qd2 {[%clk 0:01:37.7]} 16... Ne5 {[%clk
0:00:56.8]} 17. Bh3 {[%clk 0:01:13.2]} 17... O-O {[%clk 0:00:56.6]} 18. Rae1
{[%clk 0:01:03.3]} 18... Nc4 {[%clk 0:00:36.5]} 19. Qe2 {[%clk 0:00:52.3]} 19...
Nxb2 {[%clk 0:00:34.1]} 20. Bxe6+ {[%clk 0:00:53.1]} 20... Bxe6 {[%clk
0:00:30.3]} 21. Qxe6+ {[%clk 0:00:54]} 21... Qxe6 {[%clk 0:00:30.1]} 22. Rxe6
{[%clk 0:00:55.9]} 22... Rac8 {[%clk 0:00:30.4]} 23. Nxd5 {[%clk 0:00:40]} 23...
Rxc2 {[%clk 0:00:30.3]} 24. Ne3 {[%clk 0:00:36.8]} 24... Re2 {[%clk 0:00:28.2]}
25. Rb6 {[%clk 0:00:36.3]} 25... Nd3 {[%clk 0:00:27.7]} 26. Rxb7 {[%clk
0:00:34.2]} 26... Nxf2 {[%clk 0:00:15]} 27. Nd5 {[%clk 0:00:30.7]} 27... Ng4
{[%clk 0:00:11]} 28. Ne7+ {[%clk 0:00:31.5]} 1-0

[Event "*** Titled Tuesday 3|2 Blitz"]
[Site "Chess.com"]
[Date "2016.06.07"]
[Round "2"]
[White "FabianEnglert"]
[Black "IIIlllII1llIl"]
[Result "0-1"]
[WhiteElo "2369"]
[BlackElo "2438"]
[TimeControl "180+2"]
[EndTime "17:20:45 PDT"]
[Termination "IIIlllII1llIl won by resignation"]

1. Nf3 {[%clk 0:03:01.9]} 1... Nf6 {[%clk 0:03:00.7]} 2. g3 {[%clk 0:03:03.3]}
2... d5 {[%clk 0:03:01.2]} 3. Bg2 {[%clk 0:03:04]} 3... e6 {[%clk 0:03:02.6]} 4.
O-O {[%clk 0:03:05.3]} 4... Be7 {[%clk 0:03:03.8]} 5. c4 {[%clk 0:03:05.4]} 5...
O-O {[%clk 0:03:04.7]} 6. b3 {[%clk 0:03:06.4]} 6... b6 {[%clk 0:03:04.3]} 7. e3
{[%clk 0:03:06.9]} 7... Bb7 {[%clk 0:03:04.7]} 8. Bb2 {[%clk 0:03:08.1]} 8... c5
{[%clk 0:03:00.7]} 9. Qe2 {[%clk 0:03:01.6]} 9... Nc6 {[%clk 0:03:00]} 10. cxd5
{[%clk 0:02:56]} 10... exd5 {[%clk 0:02:44.5]} 11. d4 {[%clk 0:02:55.9]} 11...
Nb4 {[%clk 0:02:44.3]} 12. Nc3 {[%clk 0:02:48.6]} 12... Ne4 {[%clk 0:02:35.5]}
13. Rfd1 {[%clk 0:02:40]} 13... Ba6 {[%clk 0:02:30.6]} 14. Nb5 {[%clk
0:02:32.6]} 14... Nd6 {[%clk 0:02:17.3]} 15. a4 {[%clk 0:02:33.6]} 15... Qe8
{[%clk 0:02:06.8]} 16. Bf1 {[%clk 0:02:19.6]} 16... c4 {[%clk 0:01:06.6]} 17.
Nc7 {[%clk 0:02:13.5]} 17... Qc8 {[%clk 0:01:07.3]} 18. Nxa8 {[%clk 0:02:07.8]}
18... Qxa8 {[%clk 0:01:09.2]} 19. Qd2 {[%clk 0:02:03.5]} 19... Ne4 {[%clk
0:01:09.2]} 20. Qc1 {[%clk 0:01:51.9]} 20... c3 {[%clk 0:01:07.3]} 21. Ba3
{[%clk 0:01:35.5]} 21... Bxf1 {[%clk 0:01:08.2]} 22. Kxf1 {[%clk 0:01:27.3]}
22... c2 {[%clk 0:01:07.9]} 23. Re1 {[%clk 0:01:06.8]} 23... Nd3 {[%clk
0:01:02.2]} 24. Qxc2 {[%clk 0:01:06.6]} 24... Nxe1 {[%clk 0:00:58.7]} 25. Nxe1
{[%clk 0:01:06.1]} 25... Rc8 {[%clk 0:00:54]} 26. Qe2 {[%clk 0:01:07.2]} 26...
Bxa3 {[%clk 0:00:43.1]} 27. Rxa3 {[%clk 0:01:09.1]} 27... Rc1 {[%clk 0:00:44.3]}
28. Kg2 {[%clk 0:01:04.8]} 28... Qc8 {[%clk 0:00:45.3]} 29. Nd3 {[%clk
0:00:51.8]} 29... Rc2 {[%clk 0:00:42.5]} 30. Qf3 {[%clk 0:00:39.5]} 30... Qc3
{[%clk 0:00:37.4]} 31. Qf4 {[%clk 0:00:21.4]} 31... h6 {[%clk 0:00:32.8]} 0-1